Cogmind - Beta 12 @@@ ROGUE MODE // 2023.05.05 @ 01:34:25 Player: Mr Goldstein Result: Destroyed by TK-55Q(b) with Power Maul Performance ------------- Evolutions (5) 2500 Regions Visited (18) 3600 Robots Destroyed (17) 85 Value Destroyed (573) 573 Prototype IDs (242) 4840 Alien Tech Used (0) 0 Bonus (1432) 1432 TOTAL SCORE: 13030 Bonus ------- Pacifist 928 Follower Combat Kills 50 Entered DSFs 500 Met Data Miner 300 Used Data Conduit 3000 Met Warlord at Base 500 MAIN.C Attacked Warlord 500 Friendly Fire -4346 Cogmind --------- Core Integrity 0/1000 Matter 300/300 Energy 99/100 System Corruption 1% Temperature Cool (0) Movement Core (50) Location -5/Warlord Parts ------- > --- POWER (2) -------- (None) > --- PROPULSION (7) --- (None) > --- UTILITY (6) ------ Improved Signal Interpreter > --- WEAPON (2) ------- (None) > --- INVENTORY (5) ---- Hybrid Deuterium Engine Improved Signal Interpreter Improved Light Armor Plating Backup Laser III Vortex Lance (33) Peak State ------------ > --- POWER ------------ Light Nuclear Core > --- PROPULSION ------- Improved Airjet Improved Airjet Improved Airjet Improved Airjet Improved Airjet > --- UTILITY ---------- Makeshift Sensor Array Improved Signal Interpreter Layered Light Armor Plating Hacking Suite > --- WEAPON ----------- Rocket Launcher Great Maul > --- INVENTORY -------- Hybrid Deuterium Engine Improved Signal Interpreter Improved Propulsion Shielding Improved Light Armor Plating Rocket Launcher [Rating: 51] Favorites ----------- Power Backup Power III Engine Backup Power III Power Core Light Nuclear Core Propulsion Improved Airjet Treads Light Treads Leg Flexi-carbon Leg Wheel Armored Huge Wheel Hover Unit Improved Airjet Flight Unit VTOL Module Utility Improved Signal Interpreter Device Makeshift Sensor Array Processor Improved Signal Interpreter Hackware Hacking Suite Protection Layered Light Armor Plating Weapon Great Maul Energy Gun Backup Laser III Ballistic Gun Precision Assault Rifle Launcher Rocket Launcher Impact Weapon Great Maul Slashing Weapon Makeshift Sword Piercing Weapon Vortex Lance Build | -11 -10 -10 -9 -9 -9 -8 -8 -7 -7 -7 -7 -6 -6 -6 -5 -5 -5 -5 ------- Run | Jun Mat Min Mat Min Exi Min Mat Fac Low Low Dat Pro Fac DSF Fac Upp Upp War Slots Evolved 10 | . . . 2 . . . 2 2 . . . . 2 . 2 . . . Power 1 | . . . . . . . 1 . . . . . . . . . . . Propulsion 5 | . . . 2 . . . 1 . . . . . . . 2 . . . Utility 4 | . . . . . . . . 2 . . . . 2 . . . . . Weapon . | . . . . . . . . . . . . . . . . . . . Parts Attached 46 | 2 . . . 1 2 . 5 19 1 . . 6 . . 1 1 . 8 Power 1 | . . . . . . . . 1 . . . . . . . . . . Engine . | . . . . . . . . . . . . . . . . . . . Core 1 | . . . . . . . . 1 . . . . . . . . . . Reactor . | . . . . . . . . . . . . . . . . . . . Propulsion 19 | 2 . . . 1 1 . 3 7 . . . 3 . . 1 1 . . Treads 3 | 2 . . . 1 . . . . . . . . . . . . . . Leg 2 | . . . . . . . . . . . . 2 . . . . . . Wheel 1 | . . . . . . . . . . . . . . . . 1 . . Hover 12 | . . . . . 1 . 3 7 . . . . . . 1 . . . Flight 1 | . . . . . . . . . . . . 1 . . . . . . Utility 14 | . . . . . . . 2 7 1 . . 2 . . . . . 2 Device 2 | . . . . . . . . . 1 . . . . . . . . 1 Storage . | . . . . . . . . . . . . . . . . . . . Processor 2 | . . . . . . . 1 . . . . 1 . . . . . . Hackware 2 | . . . . . . . 1 1 . . . . . . . . . . Protection 8 | . . . . . . . . 6 . . . 1 . . . . . 1 Artifact . | . . . . . . . . . . . . . . . . . . . Weapon 12 | . . . . . 1 . . 4 . . . 1 . . . . . 6 Energy Gun 2 | . . . . . . . . . . . . . . . . . . 2 Energy Cannon . | . . . . . . . . . . . . . . . . . . . Ballistic Gun 1 | . . . . . . . . 1 . . . . . . . . . . Ballistic Cannon . | . . . . . . . . . . . . . . . . . . . Launcher 3 | . . . . . . . . 2 . . . 1 . . . . . . Special Weapon . | . . . . . . . . . . . . . . . . . . . Impact Weapon 2 | . . . . . 1 . . 1 . . . . . . . . . . Slashing Weapon 1 | . . . . . . . . . . . . . . . . . . 1 Piercing Weapon 3 | . . . . . . . . . . . . . . . . . . 3 Special Melee Weapon . | . . . . . . . . . . . . . . . . . . . Unidentified Prototypes 5 | . . . . . . . . 2 . . . . . . . . . 3 Corrupted Parts 3 | . . . . . . . . . . . . 3 . . . . . . System Corruption 16 | . . . . . . . . . . . . 16 . . . . . . Parts Lost 22 | . . . . . . . 1 . . 1 2 7 . 1 2 1 2 5 Power 3 | . . . . . . . . . . . . 1 . . . . . 2 Propulsion 13 | . . . . . . . 1 . . . 2 4 . . 2 . 2 2 Utility 3 | . . . . . . . . . . . . 1 . . . 1 . 1 Weapon 3 | . . . . . . . . . . 1 . 1 . 1 . . . . Highest Loss Streak 5 | . . . . . . . 1 . . 1 2 5 . 1 2 1 1 5 To Critical Strikes . | . . . . . . . . . . . . . . . . . . . Average Slot Usage (%) 54 | . 28 28 22 29 48 55 53 79 92 90 83 61 33 33 27 19 13 41 Engine 1 | . . . . . . . . . . . . . . . . . . 9 Core 2 | . . . . . . . . 4 7 7 7 3 . . . . . . Treads 6 | . 28 28 22 29 33 33 21 . . . . . . . . . . . Leg 1 | . . . . . . . . . . . . 2 13 13 10 . . . Hover 16 | . . . . . 7 11 10 36 38 38 37 13 . . 4 5 4 9 Device 1 | . . . . . . . . . 7 7 7 5 . . . . . . Processor 4 | . . . . . . . 7 7 7 7 7 7 6 6 5 5 5 5 Hackware 4 | . . . . . . . 8 10 7 7 7 7 6 6 5 4 . . Protection 3 | . . . . . . . . 9 7 7 7 3 . . . . . 4 Launcher 1 | . . . . . . . . 6 7 5 . 3 . . . . . . Impact Weapon 4 | . . . . . 8 11 7 2 7 7 7 7 6 6 . . . . Naked Turns . | . . . . . . . . . . . . . . . . . . . Heaviest Build 22 | . . . . . 3 3 3 19 22 22 18 22 4 4 . . . 14 Greatest Support 45 | 3 3 3 3 3 3 3 3 45 45 45 45 27 3 3 3 3 3 16 Greatest Overweight (x) 2 | . . . . . . . . 1 . . . 2 1 1 . . . 1 Average Overweight (x) . | . . . . . . . . . . . . . 1 . . . . . Largest Inventory Capacity 5 | 5 5 5 5 5 5 5 5 5 5 5 5 5 5 5 5 5 5 5 Average Capacity 5 | 5 5 5 5 5 5 5 5 5 5 5 5 5 5 5 5 5 5 5 Most Carried 5 | . . . . . 2 2 5 5 5 5 5 5 4 4 4 4 4 5 Average Carried 3 | . . . . . . 2 4 4 5 5 5 4 4 4 4 4 4 4 Final Capacity 5 | 5 5 5 5 5 5 5 5 5 5 5 5 5 5 5 5 5 5 5 Final Carried 5 | . . . . . 2 2 5 5 5 5 5 4 4 4 4 4 4 5 Class Distribution -------------------- 82% | Mutant 11% | Commander-Mutant 5% | Hacker-Mutant Dominant Class ---------------- Mutant | -10/Materials Mutant | -10/Mines Mutant | -9/Materials Mutant | -9/Mines Mutant | -9/Exiles Mutant | -8/Mines Mutant | -8/Materials Mutant | -7/Factory Mutant | -7/Lower Caves Mutant | -7/Lower Caves Mutant | -7/Data Miner Mutant | -6/Proximity Caves Mutant | -6/Factory Mutant | -6/DSF Mutant | -5/Factory Mutant | -5/Upper Caves Mutant | -5/Upper Caves Commander-Mutant | -5/Warlord Resources | -11 -10 -10 -9 -9 -9 -8 -8 -7 -7 -7 -7 -6 -6 -6 -5 -5 -5 -5 ----------- Run | Jun Mat Min Mat Min Exi Min Mat Fac Low Low Dat Pro Fac DSF Fac Upp Upp War Matter Collected 665 | 155 . . . 28 58 . . 141 38 . . 152 . . . 23 . 70 Remotely . | . . . . . . . . . . . . . . . . . . . Salvage Created 813 | . . . . . 86 . . 73 . 51 . 405 . . . . . 198 Parts 22 | . . . . . 1 . . 4 . 2 . 12 . . . . . 3 Haulers Intercepted 1 | . . . . . . . . . . . . 1 . . . . . . Recyclers Shooed . | . . . . . . . . . . . . . . . . . . . Parts Field Recycled . | . . . . . . . . . . . . . . . . . . . Retrieved Matter . | . . . . . . . . . . . . . . . . . . . Parts Self-Destructed 14 | . . . . . . . . . . . . 8 . . . 2 4 . Prevented 6 | . . . . . . . . . . . . 3 . . . 3 . . Kills | -11 -10 -10 -9 -9 -9 -8 -8 -7 -7 -7 -7 -6 -6 -6 -5 -5 -5 -5 ------- Run | Jun Mat Min Mat Min Exi Min Mat Fac Low Low Dat Pro Fac DSF Fac Upp Upp War Combat Hostiles Destroyed 15 | . . . . . . . . 5 . 1 . 9 . . . . . . Melee 4 | . . . . . . . . . . . . 4 . . . . . . AOE 7 | . . . . . . . . 4 . . . 3 . . . . . . Classes Destroyed 5 | . . . . . . . . 2 . 1 . 2 . . . . . . Hauler 1 | . . . . . . . . . . . . 1 . . . . . . Drone 1 | . . . . . . . . . . . . 1 . . . . . . Swarmer 7 | . . . . . . . . 4 . . . 3 . . . . . . Grunt 6 | . . . . . . . . . . 1 . 5 . . . . . . Sentry 1 | . . . . . . . . 1 . . . . . . . . . . Best Kill Streak 4 | . . . . . . . . 4 . 1 . 4 . . . . . . Combat Bots Only 4 | . . . . . . . . 4 . 1 . 4 . . . . . . Max Kills in Single Turn 3 | . . . . . . . . 1 . 1 . 3 . . . . . 1 Gunslinging . | . . . . . . . . . . . . . . . . . . . Exploded 3 | . . . . . . . . 1 . . . 3 . . . . . . Melee 1 | . . . . . . . . . . . . 1 . . . . . . Uniques/NPCs Destroyed 1 | . . . . . . . . . . . . . . . . . . 1 Warlord (-5/Warlord) Combat | -11 -10 -10 -9 -9 -9 -8 -8 -7 -7 -7 -7 -6 -6 -6 -5 -5 -5 -5 -------- Run | Jun Mat Min Mat Min Exi Min Mat Fac Low Low Dat Pro Fac DSF Fac Upp Upp War Damage Taken 4535 | . . 4 49 . . 91 496 578 35 109 423 799 . 150 157 330 406 908 Core 1707 | . . 2 2 . . 29 106 70 . 16 43 364 . 32 100 107 207 629 Absorbed by Shields . | . . . . . . . . . . . . . . . . . . . Core Remaining (%) 82 | 100 . 99 . . . 92 80 . . . . 29 . 96 . . . . Volleys Fired 7 | . . . . . . . . 4 . . . 3 . . . . . . Largest 1 | . . . . . . . . 1 . . . 1 . . . . . . Hottest 33 | . . . . . . . . 33 . . . 33 . . . . . . Shots Fired 7 | . . . . . . . . 4 . . . 3 . . . . . . Gun . | . . . . . . . . . . . . . . . . . . . Cannon . | . . . . . . . . . . . . . . . . . . . Launcher 7 | . . . . . . . . 4 . . . 3 . . . . . . Special . | . . . . . . . . . . . . . . . . . . . Kinetic . | . . . . . . . . . . . . . . . . . . . Thermal . | . . . . . . . . . . . . . . . . . . . Explosive 7 | . . . . . . . . 4 . . . 3 . . . . . . Electromagnetic . | . . . . . . . . . . . . . . . . . . . Robot Hit Streak 2 | . . . . . . . . 1 . . . 2 . . . . . . Robot Miss Streak 1 | . . . . . . . . 1 . . . . . . . . . . Penetration Max . | . . . . . . . . . . . . . . . . . . . Secondary Targets . | . . . . . . . . . . . . . . . . . . . Shots Hit Robots 37 | . . . . . 4 . . 5 . 1 1 17 . . . . . 9 Core Hits 29 | . . 1 1 . 1 . 1 11 . . . 9 . . . . . 5 Critical Kills 1 | . . . . . 1 . . . . . . . . . . . . . Critical Parts Destroyed 4 | . . . . . 1 . . 1 . 1 . 1 . . . . . . Critical Strikes 5 | . . . . . 2 . . 1 . 1 . 1 . . . . . . Smash 5 | . . . . . 2 . . 1 . 1 . 1 . . . . . . Melee Attacks 65 | . . . . . 4 . . 6 . 4 9 29 . . . . . 13 Impact 52 | . . . . . 4 . . 6 . 4 9 29 . . . . . . Slashing 5 | . . . . . . . . . . . . . . . . . . 5 Piercing . | . . . . . . . . . . . . . . . . . . . Entropic 8 | . . . . . . . . . . . . . . . . . . 8 Sneak Attacks 12 | . . . . . . . . . . . 1 2 . . . . . 9 Combat Hostiles . | . . . . . . . . . . . . . . . . . . . Follow-up Attacks 1 | . . . . . . . . . . . . . . . . . . 1 Damage Inflicted 3666 | . . 9 5 . 395 14 12 728 . 43 64 1016 . . . . . 1380 Guns . | . . . . . . . . . . . . . . . . . . . Cannons . | . . . . . . . . . . . . . . . . . . . Explosions 767 | . . . . . . . . 591 . . . 176 . . . . . . Melee 2817 | . . . . . 395 . . 115 . 43 64 840 . . . . . 1360 Ramming 82 | . . 9 5 . . 14 12 22 . . . . . . . . . 20 Kinetic . | . . . . . . . . . . . . . . . . . . . Thermal . | . . . . . . . . . . . . . . . . . . . Explosive 767 | . . . . . . . . 591 . . . 176 . . . . . . Electromagnetic . | . . . . . . . . . . . . . . . . . . . Impact 1457 | . . . . . 395 . . 115 . 43 64 840 . . . . . . Slashing 78 | . . . . . . . . . . . . . . . . . . 78 Piercing . | . . . . . . . . . . . . . . . . . . . Entropic 1282 | . . . . . . . . . . . . . . . . . . 1282 Highest Corruption 29 | . . . . . . . . 3 3 3 3 29 3 4 . . . 1 Average Corruption 5 | . . . . . . . . 3 3 3 3 11 3 3 . . . 1 Corruption Purged . | . . . . . . . . . . . . . . . . . . . Corruption Blocked 3 | . . . . . . . . . . . . . . . . . . 3 Effects 28 | . . . . . . . . 7 1 1 4 14 1 . . . . . Message Errors 7 | . . . . . . . . 3 . . . 3 1 . . . . . Matter Fused 5 | . . . . . . . . . 1 . 3 1 . . . . . . Heat Flow Errors 6 | . . . . . . . . 2 . . 1 3 . . . . . . Energy Discharges 1 | . . . . . . . . . . . . 1 . . . . . . Parts Rejected 1 | . . . . . . . . . . . . 1 . . . . . . Parts Fused 1 | . . . . . . . . . . . . 1 . . . . . . Data Loss (minor) 2 | . . . . . . . . . . 1 . 1 . . . . . . Data Loss (major) 2 | . . . . . . . . 1 . . . 1 . . . . . . Alerts 2 | . . . . . . . . 1 . . . 1 . . . . . . Misdirections 1 | . . . . . . . . . . . . 1 . . . . . . Overload Shots . | . . . . . . . . . . . . . . . . . . . Overflow Damage 447 | . . . . . 216 . . 24 . 43 4 160 . . . . . . Projectiles . | . . . . . . . . . . . . . . . . . . . Explosions . | . . . . . . . . . . . . . . . . . . . Melee 447 | . . . . . 216 . . 24 . 43 4 160 . . . . . . Knockbacks 8 | . . . . . 3 . . 1 . 1 . 3 . . . . . . Impact 8 | . . . . . 3 . . 1 . 1 . 3 . . . . . . Kinetic . | . . . . . . . . . . . . . . . . . . . Secondary . | . . . . . . . . . . . . . . . . . . . Self-Inflicted Damage 62 | . . 4 2 . . 7 5 10 . . . 25 . . . . . 9 Shots 1 | . . . . . . . . . . . . 1 . . . . . . Rammed 15 | . . 2 1 . . 1 3 3 . . . . . . . . . 5 Targets Rammed 15 | . . 2 1 . . 1 3 3 . . . . . . . . . 5 Kicked . | . . . . . . . . . . . . . . . . . . . Crushed . | . . . . . . . . . . . . . . . . . . . Highest Temperature 258 | . . . . . . . . 166 . . 258 256 . . . . . . Average Temperature 109 | . . . . . . . . 72 . . 130 113 . . . . . . Received Heat Transfer 570 | . . . 9 . . 18 63 84 . 27 . 171 . . 18 90 54 36 Siege Activations . | . . . . . . . . . . . . . . . . . . . Robots Corrupted . | . . . . . . . . . . . . . . . . . . . Combat Hostiles . | . . . . . . . . . . . . . . . . . . . Parts Fried 5 | . . . . . 1 . . 3 . . . 1 . . . . . . Impact Corruptions 10 | . . . . . 4 . . 1 . 1 1 3 . . . . . . Robots Melted . | . . . . . . . . . . . . . . . . . . . Combat Hostiles . | . . . . . . . . . . . . . . . . . . . Parts Melted . | . . . . . . . . . . . . . . . . . . . Heat Transferred . | . . . . . . . . . . . . . . . . . . . Parts Sabotaged . | . . . . . . . . . . . . . . . . . . . Parts Stolen . | . . . . . . . . . . . . . . . . . . . Parts Stripped . | . . . . . . . . . . . . . . . . . . . Power Chain Reactions . | . . . . . . . . . . . . . . . . . . . Missiles Intercepted . | . . . . . . . . . . . . . . . . . . . Alert | -11 -10 -10 -9 -9 -9 -8 -8 -7 -7 -7 -7 -6 -6 -6 -5 -5 -5 -5 ------- Run | Jun Mat Min Mat Min Exi Min Mat Fac Low Low Dat Pro Fac DSF Fac Upp Upp War Peak Influence 330 | . . . 30 11 . 15 145 330 . . . . 247 172 91 . . . Initial 247 | . . . . 11 . . 5 65 . . . . 247 172 84 . . . Average 111 | . . . 3 11 . 3 41 203 . . . . 247 171 86 . . . Maximum Alert Level 1 | . . . . . . . . 1 . . . . 1 . . . . . Low Security (%) 71 | 100 100 100 100 100 . 100 100 36 . . . . . 100 100 . . . Level 1 28 | . . . . . . . . 63 . . . . 100 . . . . . Level 2 . | . . . . . . . . . . . . . . . . . . . Level 3 . | . . . . . . . . . . . . . . . . . . . Level 4 . | . . . . . . . . . . . . . . . . . . . Level 5 . | . . . . . . . . . . . . . . . . . . . High Security . | . . . . . . . . . . . . . . . . . . . Max Security . | . . . . . . . . . . . . . . . . . . . Squads Dispatched 7 | . . . . . . . 1 3 . . . . . 1 1 . 1 . Investigation 1 | . . . . . . . . . . . . . . . 1 . . . Extermination . | . . . . . . . . . . . . . . . . . . . Reinforcement 5 | . . . . . . . 1 3 . . . . . 1 . . . . Assault 1 | . . . . . . . . . . . . . . . . . 1 . Garrison . | . . . . . . . . . . . . . . . . . . . Intercept . | . . . . . . . . . . . . . . . . . . . Searches Triggered . | . . . . . . . . . . . . . . . . . . . Construction Impeded 1 | . . . . . . . . 1 . . . . . . . . . . Haulers Reinforced . | . . . . . . . . . . . . . . . . . . . Active Scanning Responses . | . . . . . . . . . . . . . . . . . . . Cargo Convoy Interrupts . | . . . . . . . . . . . . . . . . . . . Stealth | -11 -10 -10 -9 -9 -9 -8 -8 -7 -7 -7 -7 -6 -6 -6 -5 -5 -5 -5 --------- Run | Jun Mat Min Mat Min Exi Min Mat Fac Low Low Dat Pro Fac DSF Fac Upp Upp War Distress Signals . | . . . . . . . . . . . . . . . . . . . Communications Jammed . | . . . . . . . . . . . . . . . . . . . Distress Signals . | . . . . . . . . . . . . . . . . . . . Times Spotted 119 | . . . 2 . . 4 19 12 3 6 4 12 . 3 6 14 11 23 Peak Tracking Total 21 | . . . 4 . . 4 15 6 3 6 4 5 . 3 6 9 13 21 Tactical Retreats 16 | . . . . . . . 3 3 1 . . 2 . . . 3 4 . Traps | -11 -10 -10 -9 -9 -9 -8 -8 -7 -7 -7 -7 -6 -6 -6 -5 -5 -5 -5 ------- Run | Jun Mat Min Mat Min Exi Min Mat Fac Low Low Dat Pro Fac DSF Fac Upp Upp War Traps Triggered 6 | . . . . . . . 2 3 . . . . 1 . . . . . Indirectly . | . . . . . . . . . . . . . . . . . . . Trap Hack Attempts . | . . . . . . . . . . . . . . . . . . . Triggered . | . . . . . . . . . . . . . . . . . . . Disarmed . | . . . . . . . . . . . . . . . . . . . Reprogrammed . | . . . . . . . . . . . . . . . . . . . Reused . | . . . . . . . . . . . . . . . . . . . Traps Extracted . | . . . . . . . . . . . . . . . . . . . Installed . | . . . . . . . . . . . . . . . . . . . Triggered 8 | . . . . . . . . . . . . . . . . . . 8 Machines | -11 -10 -10 -9 -9 -9 -8 -8 -7 -7 -7 -7 -6 -6 -6 -5 -5 -5 -5 ---------- Run | Jun Mat Min Mat Min Exi Min Mat Fac Low Low Dat Pro Fac DSF Fac Upp Upp War Machines Disabled 1 | . . . . . . . . . . 1 . . . . . . . . Max in Single Turn 1 | . . . . . . . . . . 1 . . . . . . . . Machines Repaired . | . . . . . . . . . . . . . . . . . . . Machines Sabotaged . | . . . . . . . . . . . . . . . . . . . Overloaded Fab Kills . | . . . . . . . . . . . . . . . . . . . Hacking | -11 -10 -10 -9 -9 -9 -8 -8 -7 -7 -7 -7 -6 -6 -6 -5 -5 -5 -5 --------- Run | Jun Mat Min Mat Min Exi Min Mat Fac Low Low Dat Pro Fac DSF Fac Upp Upp War Machines Accessed 13 | . . . . . 1 . . 2 . . 3 . 1 . 2 1 . 3 Terminals 5 | . . . . . . . . 2 . . . . 1 . 2 . . . Fabricators . | . . . . . . . . . . . . . . . . . . . Repair Stations . | . . . . . . . . . . . . . . . . . . . Recycling Units . | . . . . . . . . . . . . . . . . . . . Scanalyzers . | . . . . . . . . . . . . . . . . . . . Garrison Access . | . . . . . . . . . . . . . . . . . . . Total Hacks 39 | . . . . . 1 . . 4 . . 19 . 1 . 4 1 . 9 Successful 32 | . . . . . 1 . . . . . 19 . 1 . 1 1 . 9 Failed 7 | . . . . . . . . 4 . . . . . . 3 . . . Catastrophic 1 | . . . . . . . . . . . . . . . 1 . . . Database Lockouts . | . . . . . . . . . . . . . . . . . . . Manual 4 | . . . . . 1 . . 2 . . . . . . 1 . . . Terminals 9 | . . . . . . . . 4 . . . . 1 . 4 . . . Fabricators . | . . . . . . . . . . . . . . . . . . . Repair Stations . | . . . . . . . . . . . . . . . . . . . Recycling Units . | . . . . . . . . . . . . . . . . . . . Scanalyzers . | . . . . . . . . . . . . . . . . . . . Garrison Access . | . . . . . . . . . . . . . . . . . . . Terminal Hacks 32 | . . . . . 1 . . . . . 19 . 1 . 1 1 . 9 Record 10 | . . . . . . . . . . . 2 . . . . . . 8 Part Schematic 9 | . . . . . . . . . . . 9 . . . . . . . Robot Schematic 5 | . . . . . . . . . . . 5 . . . . . . . Prototype ID Bank 3 | . . . . . . . . . . . 3 . . . . . . . Open Door 2 | . . . . . . . . . . . . . . . . 1 . 1 Open DSF 1 | . . . . . . . . . . . . . 1 . . . . . Branch Access Points 1 | . . . . . . . . . . . . . . . 1 . . . EX-Prototype ID Bank 1 | . . . . . 1 . . . . . . . . . . . . . Fabricator Hacks . | . . . . . . . . . . . . . . . . . . . Repair Station Hacks . | . . . . . . . . . . . . . . . . . . . Recycling Unit Hacks . | . . . . . . . . . . . . . . . . . . . Scanalyzer . | . . . . . . . . . . . . . . . . . . . Garrison Access Hacks . | . . . . . . . . . . . . . . . . . . . Unauthorized Hacks . | . . . . . . . . . . . . . . . . . . . Terminals . | . . . . . . . . . . . . . . . . . . . Fabricators . | . . . . . . . . . . . . . . . . . . . Repair Stations . | . . . . . . . . . . . . . . . . . . . Recycling Units . | . . . . . . . . . . . . . . . . . . . Scanalyzers . | . . . . . . . . . . . . . . . . . . . Garrison Access . | . . . . . . . . . . . . . . . . . . . Data Cores Recovered . | . . . . . . . . . . . . . . . . . . . Used . | . . . . . . . . . . . . . . . . . . . Hacking Detections 4 | . . . . . . . . 2 . . . . 1 . 1 . . . Full Trace Events 1 | . . . . . . . . . . . . . . . 1 . . . Feedback Events . | . . . . . . . . . . . . . . . . . . . Feedback Blocked . | . . . . . . . . . . . . . . . . . . . Robot Schematics Acquired 5 | . . . . . . . . . . . 5 . . . . . . . Robots Built . | . . . . . . . . . . . . . . . . . . . Authchips . | . . . . . . . . . . . . . . . . . . . Time . | . . . . . . . . . . . . . . . . . . . Total Robot Build Rating . | . . . . . . . . . . . . . . . . . . . Part Schematics Acquired 9 | . . . . . . . . . . . 9 . . . . . . . Parts Built . | . . . . . . . . . . . . . . . . . . . Authchips . | . . . . . . . . . . . . . . . . . . . Time . | . . . . . . . . . . . . . . . . . . . Total Part Build Rating . | . . . . . . . . . . . . . . . . . . . Parts Repaired . | . . . . . . . . . . . . . . . . . . . Time . | . . . . . . . . . . . . . . . . . . . Parts Recycled . | . . . . . . . . . . . . . . . . . . . Recycled Matter . | . . . . . . . . . . . . . . . . . . . Retrieved Matter . | . . . . . . . . . . . . . . . . . . . Retrieved Components . | . . . . . . . . . . . . . . . . . . . Parts Scanalyzed . | . . . . . . . . . . . . . . . . . . . Part Schematics Acquired . | . . . . . . . . . . . . . . . . . . . Parts Damaged . | . . . . . . . . . . . . . . . . . . . Bothacking | -11 -10 -10 -9 -9 -9 -8 -8 -7 -7 -7 -7 -6 -6 -6 -5 -5 -5 -5 ------------ Run | Jun Mat Min Mat Min Exi Min Mat Fac Low Low Dat Pro Fac DSF Fac Upp Upp War Used RIF Installer . | . . . . . . . . . . . . . . . . . . . Robots Hacked . | . . . . . . . . . . . . . . . . . . . Non-combat . | . . . . . . . . . . . . . . . . . . . Combat . | . . . . . . . . . . . . . . . . . . . Robot Hacks Applied . | . . . . . . . . . . . . . . . . . . . Relay Couplers Released . | . . . . . . . . . . . . . . . . . . . Fabnet Peak Effective % . | . . . . . . . . . . . . . . . . . . . Robots Rewired 8 | . . . . . 3 . . . . . . . . . . . . 5 Allies Hacked . | . . . . . . . . . . . . . . . . . . . Hacks Repelled . | . . . . . . . . . . . . . . . . . . . Allies | -11 -10 -10 -9 -9 -9 -8 -8 -7 -7 -7 -7 -6 -6 -6 -5 -5 -5 -5 -------- Run | Jun Mat Min Mat Min Exi Min Mat Fac Low Low Dat Pro Fac DSF Fac Upp Upp War Total Allies 11 | . . 3 . . 3 . . . . . . . . . . . . 5 Largest Group 5 | . . 3 . . 3 3 . . . . . . . . . . . 5 Highest-Rated Group 237 | . . 40 . . 37 37 . . . . . . . . . . . 237 Highest-Rated Ally 57 | . . 16 . . 21 21 . . . . . . . . . . . 57 Total Orders . | . . . . . . . . . . . . . . . . . . . Ally Attacks 11 | . . . . . . . . . . . . . . . . . . 11 Total Damage 305 | . . . . . . . . . . . . . . . . . . 305 Kills 1 | . . . . . . . . . . . . . . . . . . 1 Allies Corrupted 1 | . . . . . . . . . . . . . . . . . . 1 Allies Melted . | . . . . . . . . . . . . . . . . . . . Intel | -11 -10 -10 -9 -9 -9 -8 -8 -7 -7 -7 -7 -6 -6 -6 -5 -5 -5 -5 ------- Run | Jun Mat Min Mat Min Exi Min Mat Fac Low Low Dat Pro Fac DSF Fac Upp Upp War Robot Analysis Total 131 | . . . . . . . . . . . 131 . . . . . . . Derelict Logs Recovered 6 | . . 1 . . . . . . 2 . . 2 . . . 1 . . Drone Launches . | . . . . . . . . . . . . . . . . . . . Drone Recoveries . | . . . . . . . . . . . . . . . . . . . Exploration | -11 -10 -10 -9 -9 -9 -8 -8 -7 -7 -7 -7 -6 -6 -6 -5 -5 -5 -5 ------------- Run | Jun Mat Min Mat Min Exi Min Mat Fac Low Low Dat Pro Fac DSF Fac Upp Upp War Turns Passed 2902 | 21 20 45 24 64 305 108 91 355 168 139 195 361 41 29 119 160 95 562 Spaces Moved 4259 | 36 40 86 46 125 458 214 152 548 300 212 108 488 42 30 234 316 189 635 Core 2189 | 36 40 86 46 125 458 214 152 16 . . . 79 42 30 234 316 189 126 Treads . | . . . . . . . . . . . . . . . . . . . Legs . | . . . . . . . . . . . . . . . . . . . Wheels . | . . . . . . . . . . . . . . . . . . . Hover 2070 | . . . . . . . . 532 300 212 108 409 . . . . . 509 Flight . | . . . . . . . . . . . . . . . . . . . Fastest Speed 34 | 50 50 50 50 50 50 50 50 34 34 34 34 42 100 50 50 50 50 50 Average Speed 50 | 50 50 50 50 50 50 50 50 38 34 34 35 53 100 96 50 50 50 71 Slowest Speed 150 | 50 50 50 50 50 50 50 50 106 34 34 42 150 100 100 50 50 50 100 Overloaded Moves . | . . . . . . . . . . . . . . . . . . . Propulsion Burnouts . | . . . . . . . . . . . . . . . . . . . Robots Hopped . | . . . . . . . . . . . . . . . . . . . Cave-ins Triggered 2 | . . . . . . . . . . . . 2 . . . . . . Exploration Rate (%) 39 | 3 15 25 8 29 88 71 22 17 55 37 80 63 2 41 11 49 43 82 Regions Visited 18 Branch Regions 11 Pre-discovered Areas 28 | . . . . . . . . . . . 26 1 . . . 1 . . Known Exits Taken 11 | . . . 1 . . . 1 1 1 1 1 1 1 . 1 1 1 . Unknown Exits Taken 6 | 1 1 1 . 1 1 1 . . . . . . . . . . . . Scrap Searched 7 | . . . . 1 . 1 . . 3 . . . . . . 2 . . Spaces Dug 14 | . . . . . . . . 3 . 2 . 9 . . . . . . Terrain Destroyed 76 | . . . . . . . . 42 . 2 . 32 . . . . . . Melee 14 | . . . . . . . . 3 . 2 . 9 . . . . . . Projectile . | . . . . . . . . . . . . . . . . . . . AOE 62 | . . . . . . . . 39 . . . 23 . . . . . . Terrain Rammed . | . . . . . . . . . . . . . . . . . . . Walls Destroyed . | . . . . . . . . . . . . . . . . . . . Machines Disabled . | . . . . . . . . . . . . . . . . . . . Actions | -11 -10 -10 -9 -9 -9 -8 -8 -7 -7 -7 -7 -6 -6 -6 -5 -5 -5 -5 --------- Run | Jun Mat Min Mat Min Exi Min Mat Fac Low Low Dat Pro Fac DSF Fac Upp Upp War Total 4857 | 37 39 87 46 125 528 214 164 671 364 270 245 527 41 29 234 316 188 732 Wait 406 | . . . . . 47 . . 79 64 55 129 . . . . . . 32 Move 4241 | 35 39 85 45 124 457 214 151 547 299 211 107 486 41 29 233 315 188 635 Hop . | . . . . . . . . . . . . . . . . . . . Pick Up 10 | . . . . . 2 . 4 3 . . . . . . . . . 1 Fast Attach 40 | 2 . . . 1 2 . 5 16 . . . 5 . . 1 1 . 7 Attach 2 | . . . . . . . . 1 . . . 1 . . . . . . Detach 1 | . . . . . . . . . . . . . . . . . . 1 Swap 4 | . . . . . . . . 2 1 . . . . . . . . 1 Drop 21 | . . . . . . . 1 10 . . . 2 . . . . . 8 Fire 7 | . . . . . . . . 4 . . . 3 . . . . . . Melee 64 | . . . . . 4 . . 6 . 4 9 29 . . . . . 12 Ram 14 | . . 2 1 . . . 3 3 . . . . . . . . . 5 Kick . | . . . . . . . . . . . . . . . . . . . Crush . | . . . . . . . . . . . . . . . . . . . Escape Stasis 1 | . . . . . . . . . . . . 1 . . . . . . Rewire 46 | . . . . . 16 . . . . . . . . . . . . 30 Trap . | . . . . . . . . . . . . . . . . . . . Miscellaneous . | . . . . . . . . . . . . . . . . . . . Route ------- -11/Junkyard -10/Materials -10/Mines -9/Materials (discovered 2 exits: *Min x2) -9/Mines (discovered 3 exits: [*Mat x2] / *Exi) -9/Exiles -8/Mines -8/Materials -7/Factory (discovered 2 exits: *Fac / *Low) -7/Lower Caves -7/Lower Caves -7/Data Miner -6/Proximity Caves -6/Factory (discovered 3 exits: Ext x2 / DSF) -6/DSF -5/Factory (discovered 3 exits: [*Fac] / *Upp x2) -5/Upper Caves -5/Upper Caves -5/Warlord History --------- Turn | Location | Event 2 | -11/Junkyard | Discovered new exit (range 16) 22 | -11/Junkyard | Entered Materials 34 | -10/Materials | Discovered new exit (range 15) 42 | -10/Materials | Entered Mines 75 | -10/Mines | Assisted by bots powering up and referring to "LRC-V3" 83 | -10/Mines | Discovered new exit (range 10) 87 | -10/Mines | Entered Materials 87 | -9/Materials | Evolved 2 slots: Propulsion x2 88 | -9/Materials | Identified exit to Mines 111 | -9/Materials | Entered Mines 127 | -9/Mines | Discovered new exit (range 8) 163 | -9/Mines | Discovered new exit (range 9) 173 | -9/Mines | Deemed a non-threat by the Exiles lab entrance 173 | -9/Mines | Discovered new exit (range 5) 175 | -9/Mines | Entered Exiles 175 | -9/Exiles | Found Exiles lab destroyed 226 | -9/Exiles | Opened EX-Vault 307 | -9/Exiles | Build established: Mutant 427 | -9/Exiles | Discovered new exit (range 15) 480 | -9/Exiles | Entered Mines 480 | -8/Mines | Accompanied by 3 allies 586 | -8/Mines | Discovered new exit (range 4) 588 | -8/Mines | Entered Materials 588 | -8/Materials | Evolved 2 slots: Power x1, Propulsion x1 673 | -8/Materials | Discovered new exit (range 14) 679 | -8/Materials | Identified exit to Factory 679 | -8/Materials | Entered Factory 679 | -7/Factory | Evolved 2 slots: Utility x2 834 | -7/Factory | Discovered new exit (range 15) 839 | -7/Factory | Identified exit to Factory 1015 | -7/Factory | Discovered new exit (range 9) 1018 | -7/Factory | Identified exit to Lower Caves 1034 | -7/Factory | Entered Lower Caves 1166 | -7/Lower Caves | Learned Factory non-interactive machine intel 1195 | -7/Lower Caves | Discovered new exit (range 16) 1199 | -7/Lower Caves | Identified exit to Lower Caves 1202 | -7/Lower Caves | Entered another Lower Caves area 1314 | -7/Lower Caves | Attacked by a delusional Derelict stockpiling Unaware 1339 | -7/Lower Caves | Discovered new exit (range 7) 1341 | -7/Lower Caves | Identified exit to Data Miner 1341 | -7/Lower Caves | Entered Data Miner 1341 | -7/Data Miner | Discovered new exit (range 6) 1343 | -7/Data Miner | Identified exit to Proximity Caves 1348 | -7/Data Miner | Met Data Miner 1355 | -7/Data Miner | Learned location of Section 7 (-2) 1357 | -7/Data Miner | Acquired the access code to Warlord's prototype stash 1363 | -7/Data Miner | Received God Mode back door access code from Data Miner 1369 | -7/Data Miner | Interfaced with the Data Conduit 1536 | -7/Data Miner | Entered Proximity Caves 1710 | -6/Proximity Caves | Crushed by falling debris 1710 | -6/Proximity Caves | System corruption reached 10% 1736 | -6/Proximity Caves | Crushed by falling debris 1745 | -6/Proximity Caves | Attracted the attention of an 0b10 checkpoint 1745 | -6/Proximity Caves | Core integrity fell below 50% 1751 | -6/Proximity Caves | Learned location of 1 exit from Factory 1756 | -6/Proximity Caves | Lost 5 parts (1p2n1u1w) 1819 | -6/Proximity Caves | Found Imp. Powered Armor 1872 | -6/Proximity Caves | Spotter reported a threat 1893 | -6/Proximity Caves | Discovered exit to Factory (range 5) 1897 | -6/Proximity Caves | Entered Factory 1897 | -6/Factory | Evolved 2 slots: Utility x2 1898 | -6/Factory | Identified exit to Extension 1900 | -6/Factory | Loaded intel: 255 machine locations 1901 | -6/Factory | Loaded intel: 201 non-interactive machine locations 1937 | -6/Factory | Identified exit to DSF 1938 | -6/Factory | Entered DSF 1939 | -6/DSF | Loaded intel: 3 machine locations 1954 | -6/DSF | Discovered new exit (range 14) 1966 | -6/DSF | Identified exit to Factory 1967 | -6/DSF | Entered Factory 1967 | -5/Factory | Evolved 2 slots: Propulsion x2 1968 | -5/Factory | Loaded intel: 315 machine locations 2016 | -5/Factory | Identified exit to Upper Caves 2043 | -5/Factory | Discovered new exit (range 13) 2086 | -5/Factory | Entered Upper Caves 2092 | -5/Upper Caves | Encountered a Warlord checkpoint 2173 | -5/Upper Caves | Attracted the attention of an 0b10 outpost 2213 | -5/Upper Caves | Attracted the attention of an 0b10 checkpoint 2240 | -5/Upper Caves | Discovered new exit (range 10) 2245 | -5/Upper Caves | Identified exit to Upper Caves 2246 | -5/Upper Caves | Entered another Upper Caves area 2263 | -5/Upper Caves | Attracted the attention of an 0b10 checkpoint 2281 | -5/Upper Caves | Attracted the attention of an 0b10 outpost 2334 | -5/Upper Caves | Discovered new exit (range 14) 2337 | -5/Upper Caves | Spotted B-75 Beast 2340 | -5/Upper Caves | Identified exit to Warlord 2341 | -5/Upper Caves | Entered Warlord 2702 | -5/Warlord | Visited the Vortex Lab 2705 | -5/Warlord | Warlord's base attacked by MAIN.C 2709 | -5/Warlord | Found Prototype Piercing Weapon 2709 | -5/Warlord | Identified Vortex Lance 2714 | -5/Warlord | Found Vortex Lance 2718 | -5/Warlord | Found Prototype Energy Gun 2718 | -5/Warlord | Identified Vortex Rifle 2816 | -5/Warlord | Met Warlord 2829 | -5/Warlord | Found Prototype Device 2829 | -5/Warlord | Identified Minesniffer Drone Bay 2852 | -5/Warlord | Build established: Commander-Mutant 2874 | -5/Warlord | Destroyed Warlord 2875 | -5/Warlord | Attacked by Warlord forces 2876 | -5/Warlord | Spotted JV-WU6(K) 2876 | -5/Warlord | Spotted G0-EM2(K) 2876 | -5/Warlord | Found Adv. Powered Armor 2893 | -5/Warlord | Core integrity fell below 50% 2900 | -5/Warlord | Core integrity fell below 20% 2903 | -5/Warlord | Destroyed by TK-55Q(b) with Power Maul Last Messages --------------- 02892_ Slammed into GU-ILE(g). 02893_ TH-MYN(m) repairs 94-0FG(b). 02893_ RO-R7T(M) suffers critical hit (Destroy). 02894_ RF-N49(p) resets 2E-V6H(b), system corruption cleaned. 02894_ Slammed into RF-N49(p). 02895_ ANNOUNCEMENT: MAIN.C reinforcements approaching through caves, arriving soon. 02895_ Archangel 6a destroyed. 02895_ RO-R7T(M) shuts down. 02897_ AP-87N(l) knocked back. 02897_ KM-THL(p) resets GU-ILE(g), system corruption cleaned. 02899_ Knocked back. 02899_ XP-VS3(p) resets N7-I2Z(M), system corruption cleaned. 02900_ 94-0FG(b) suffers critical hit (Destroy). 02900_ 94-0FG(b) destroyed. 02900_ Vortex Lance severed. 02901_ KM-THL(p) resets ZZ-OXZ(M), system corruption cleaned. 02902_ KM-THL(p) resets TK-55Q(b), system corruption cleaned. 02902_ Slammed into OF-MBF(Y). 02902_ Knocked back. Map ----- +----------------------------------------------------+ | ??????###/#########+################# | | ????????# # #???????# | | ????????# # #???????# | | ????????# """ """ # #???????### | | ????????# """ """ # #???????## | | ????????# """ """ # #???????#"" | | ????????# # #???????#"X | | ????????# # #???????#"" | | ????????# # #???????#"" | | ????????#/###################???????#"" | | ????????# #?????????????????????????### | | ????????# #???????????????????????????? | | ????????# #???????????????????????????? | | ????????# ##??????????????????????????? | | ????????# #??????????????????????????? | | ????????# ##??????????????????#######?? | | ????????# #???????????????????# X#?? | | ????????# #??######?######????# "?? | | ????????# #??#""""###""""##???# "?? | | ????????# #??#""""##"" "#???# "?? | | ######### #??#! !!##" "#???# ??? | | # # #??#! !!##"" #X"#???# #### | | # / #??#! !!##" #""#???# """" | | # # ##### ##### ####???# | | # #g## ##+######/########= | | # # Mg @ gp g%=M%[=!+% != | | # + Yb l pMM[%m%=K%%[ [% | | # # % /pbgM%%%K!*[+% = | | # ###+###;+#########/##"# !%[ | | # ??# # ### | | # ??# # /// #?#"""""""" | | # ???# # & #?######### | | ######???# # !!! ########### | | ?????????# # " | | ?????????# # ## ######## | | ?????????# # ####??????? | | ?????????# # #?????????? | | ?????????####################?????????? | | | | | | | | | | | | | | | | | | | | | | | | | +----------------------------------------------------+ Best States ------------- Heat Dissipation 40 Energy Generation 17 Energy Capacity 160 Matter Stores 300 Matter Capacity 300 Sight Range 16 Robot Scan Range 19 Terrain Scan Density 10 Armor Coverage 400 Propulsion Shielding 66 Evasion (%) 58 Offensive Hacking 20 Item Schematics ----------------- Combat Drone Bay | -7/Data Miner | Free Lgt. Regenerative Plating | -7/Data Miner | Free Cld. Aerolev Unit | -7/Data Miner | Free Exp. Targeting Computer | -7/Data Miner | Free Com. Ion Cannon | -7/Data Miner | Free Arm. Medium Treads | -7/Data Miner | Free Mass Driver | -7/Data Miner | Free Imp. Reaction Control System | -7/Data Miner | Free Imp. Dynamic Insulation System | -7/Data Miner | Free Robot Schematics ------------------ M-22 Extractor | -7/Data Miner | Free O-24 Administrator | -7/Data Miner | Free L-41 Fighter | -7/Data Miner | Free G-47 Trooper | -7/Data Miner | Free B-60 Warrior | -7/Data Miner | Free Fabricated ------------ Nothing Alien Tech Used ----------------- None Achievements -------------- None Challenges ------------ None Game ------ Seed InsulationLinkedCarapace Manual? 0 Play Time 00:31:36 Cumulative 174.6 hours Start 2023.05.05 @ 01:04:24 End 2023.05.05 @ 01:34:25 Sessions 1 Manual Loads 0 Difficulty Rogue Special Mode None Game No. 517 Rogue 517 Adventurer 0 Explorer 0 Win Type - Total 8 Types 7/0/0/1/0/0/0/0/0 Lore% 71 Gallery% 74 Achievement% 65 Wizard Run 0 Options --------- ASCII 0 Keyboard 0 Movement Numpad Keybinds 0 Fullscreen 1 Font 16/SmallcapsGlow Map View 75x55 Tactical HUD 1 Map Filters NONE Filters NONE Steam 1 RUN: 1123b38c-4e9e-4d0f-9772-6267e29a7992